[Event "FIDE WCCC U10 2018"]
[Site "Santiago de Compostela"]
[Date "2018.11.05"]
[Round "2"]
[White "Mogirzan, Matei-Valeriu"]
[Black "Tabuenca Mendataurigoitia, Dani"]
[Result "1-0"]
[ECO "C00"]
[WhiteElo "1939"]
[BlackElo "1648"]
[Annotator "NA RC"]
[PlyCount "61"]
[EventDate "2018.11.04"]
[EventType "swiss"]
[EventCountry "ESP"]
[SourceTitle "playchess.com"]
[Source "ChessBase"]
[SourceQuality "1"]
[TimeControl "40/5400+30:1800+30"]

{[%evp 8,60,-41,32767,32767,32767,32767,-148,32767,32767,-65,-72,-34,-75,0,-31,-40,-43,5,11,2,5,182,169,181,193,196,220,337,368,362,356,609,637,907,941,887,978,1010,1054,1030,1021,1594,1840,29991,29992,29993,29994,29996,29997,29997,29998,29998,29999,29999]} 1. e4 {[%emt 0:00:00]} e6 {[%emt 0:00:00]} 2. d4 {[%emt 0:00:00]} d5 {[%emt 0:00:01]} 3. c4 {[%emt 0:01:17]} dxe4 {[%emt 0:01:17]} 4. Nc3 {[%emt 0:00:23]} Nf6 {LiveBook: 5 Games C01: French: Exchange Variation} 5. f3 {[%emt 0:00:29]} (5. Be3 Be7 6. Qc2 O-O 7. O-O-O c5 8. d5 exd5 9. cxd5 Bd6 10. h3 Na6 11. a3 Bd7 12. g4 {0-1 (26) Galvao,H (2161)-Santos Latasa,J (2576) Maia 2018}) 5... Nc6 {[%emt 0:01:15]} 6. Be3 {[%emt 0:00:22]} Bb4 {[%emt 0:02:05]} 7. a3 {[%emt 0:01:23]} (7. Qb3 $142) 7... Bxc3+ {[%emt 0:00:12]} 8. bxc3 {[%emt 0:00:06]} b6 $146 {[%emt 0:01:00]} (8... O-O $17 9. fxe4 Nxe4) ({Predecessor:} 8... h6 9. Qc2 exf3 10. Nxf3 O-O 11. Be2 e5 12. d5 {0-1 (73) Ferreira,K (2079)-Araujo,J (2205) Praia da Pipa 2014}) 9. fxe4 {[%emt 0:01:01]} e5 {[%emt 0:04:20]} 10. d5 {[%emt 0:03:41]} Ne7 {[%emt 0:01:19]} (10... Ng4 $17 11. Bc1 O-O) 11. Nf3 {[%emt 0:00:35]} Nxe4 {[%emt 0:01:41]} 12. Bd3 {[%emt 0:01:29]} Nf5 {[%emt 0:03:20]} 13. Bxe4 {[%emt 0:01:25]} Nxe3 {[%emt 0:00:09]} 14. Qe2 {[%emt 0:01:10]} Ng4 $2 {[%emt 0:01:13] [#]} (14... f5 $1 $11 {und Schwarz ist OK.} 15. Qxe3 fxe4 16. Qxe4 O-O) 15. d6 $1 {[%emt 0:02:27]} Rb8 {[%emt 0:00:18] [#]} 16. Bc6+ $1 {[%emt 0:00:22]} ({Don't play} 16. h3 $6 Nf6 $14) 16... Kf8 {[%emt 0:00:48] [#]} 17. d7 $1 {[%emt 0:02:32]} Bb7 {[%emt 0:03:45]} (17... Bxd7 $142 18. O-O-O Bxc6 19. Rxd8+ Rxd8) 18. Bxb7 {[%emt 0:00:12]} Rxb7 {[%emt 0:00:10]} 19. Qe4 {[%emt 0:00:06]} ({Not} 19. Nxe5 Nxe5 20. Qxe5 Qxd7 $11) 19... Qxd7 $2 {[%emt 0:01:31]} (19... c6 20. Qxg4 Qxd7) 20. Qxb7 {[%emt 0:01:24]} Qd3 {[%emt 0:00:18]} 21. Qc8+ {[%emt 0:00:08]} ({And not} 21. Qa8+ Ke7 $11) 21... Ke7 {[%emt 0:00:07]} 22. Qxg4 {[%emt 0:00:19]} ({And not} 22. Qxh8 Qxc3+ 23. Ke2 Qe3+ 24. Kd1 Qd3+ 25. Nd2 (25. Kc1 Qc3+ 26. Kb1 Qb3+ 27. Kc1 Qc3+ 28. Kb1 Qb3+ 29. Kc1 Qc3+ $11) 25... Ne3+ 26. Ke1 Nc2+ 27. Kd1 Ne3+ 28. Ke1 Nc2+ 29. Kd1 Ne3+ $11) 22... Qxc3+ {[%emt 0:02:19]} 23. Kf2 {[%emt 0:00:06]} Qc2+ {[%emt 0:00:21]} 24. Kg3 {[%emt 0:00:07]} g6 {[%emt 0:03:24]} 25. Rhe1 {[%emt 0:01:16]} f6 {[%emt 0:00:46] [#]} 26. Nxe5 $1 {[%emt 0:00:15]} fxe5 {[%emt 0:00:22]} 27. Rxe5+ {[%emt 0:00:05]} Kf6 {[%emt 0:00:23]} 28. Qg5+ {[%emt 0:00:22]} Kg7 {[%emt 0:00:42]} 29. Re7+ {[%emt 0:00:24]} Kg8 {[%emt 0:00:06]} 30. Qd5+ {[%emt 0:00:05]} Kf8 {[%emt 0:00:08]} 31. Qf7# {[%emt 0:00:04]} 1-0

[Event "FIDE WCCC U10 2018"]
[Site "Santiago de Compostela"]
[Date "2018.11.05"]
[Round "2"]
[White "Atanasov, Anthony"]
[Black "Kandil, Ahmed Abdel Khalek"]
[Result "1-0"]
[ECO "D00"]
[WhiteElo "1916"]
[BlackElo "1812"]
[Annotator "NA RC"]
[PlyCount "67"]
[EventDate "2018.11.04"]
[EventType "swiss"]
[EventCountry "ESP"]
[SourceTitle "playchess.com"]
[Source "ChessBase"]
[SourceQuality "1"]
[TimeControl "40/5400+30:1800+30"]

{[%evp 8,67,11,2,32767,32767,-8,1,-6,0,0,-17,-24,-16,-18,-15,-14,-44,-12,-2,58,-3,13,25,21,-15,39,7,5,4,31,49,39,33,217,210,217,209,210,226,213,220,247,226,237,245,258,175,174,164,214,216,459,441,451,400,458,478,457,493,478,431]} 1. d4 {[%emt 0:00:00]} d5 {[%emt 0:00:00]} 2. Bf4 {[%emt 0:00:00]} Nf6 {[%emt 0:00:00]} 3. e3 {[%emt 0:00:00]} e6 {[%emt 0:00:00]} 4. Nd2 {[%emt 0:00:00]} c5 {[%emt 0:00:38]} 5. c3 {[%emt 0:00:00]} Bd6 {[%emt 0:00:13]} 6. Bg3 {[%emt 0:00:17]} Qc7 {[%emt 0:00:15]} 7. Ngf3 {[%emt 0:11:03]} Nbd7 {[%emt 0:00:49]} 8. Bd3 {[%emt 0:02:46]} O-O {[%emt 0:00:15]} 9. Qe2 {[%emt 0:01:58] D02: 1 d4 d5 2 Nf3 sidelines, including 2...Nf6 3 g3 and 2...Nf6 3 Bf4} (9. Qc2 e5 10. dxe5 Nxe5 11. Nxe5 Bxe5 12. Nf3 Bxg3 13. hxg3 h6 14. c4 Be6 15. O-O Rfd8 16. Rac1 Rac8 17. cxd5 Nxd5 {½-½ (36) Vachier Lagrave,M (2779)-Dominguez Perez,L (2739) chess.com INT 2018}) 9... e5 {[%emt 0:02:02]} 10. dxe5 {[%emt 0:00:50]} Nxe5 {[%emt 0:01:02]} 11. Nxe5 {[%emt 0:00:57]} Bxe5 {[%emt 0:00:14] LiveBook: 3 Games} 12. Nf3 {[%emt 0:04:22]} Bd6 {[%emt 0:00:33]} 13. Bh4 $146 {[%emt 0:04:33]} ({Predecessor:} 13. Rd1 Bg4 14. Bh4 Be7 15. h3 Be6 16. Qc2 c4 {1-0 (70) Sukandar,I (2408)-Lye,L (2183) Cha Am 2018}) 13... Ng4 {[%emt 0:05:06]} ({Black should play} 13... Ne4 $11) 14. h3 {[%emt 0:06:37]} Ne5 {[%emt 0:03:38]} 15. Nxe5 {[%emt 0:03:10]} Bxe5 {[%emt 0:00:16]} 16. O-O {[%emt 0:01:23]} Re8 {[%emt 0:01:23]} 17. Qc2 {[%emt 0:12:42]} g6 {[%emt 0:02:21]} 18. Rad1 {[%emt 0:00:21]} Be6 {[%emt 0:01:38]} 19. f4 {[%emt 0:01:40]} Bg7 {[%emt 0:04:55]} 20. f5 {[%emt 0:08:56]} c4 $2 {[%emt 0:00:24]} ({Black should play} 20... Bd7 $14) 21. fxe6 {[%emt 0:01:20]} cxd3 {[%emt 0:00:41]} 22. exf7+ {[%emt 0:00:32]} Qxf7 {[%emt 0:00:14]} 23. Qxd3 {[%emt 0:00:28]} Qe6 {[%emt 0:02:32]} 24. Qxd5 {[%emt 0:04:14]} Bh6 {[%emt 0:02:12]} 25. Qxe6+ {[%emt 0:02:24]} Rxe6 {[%emt 0:00:07]} 26. Rd7 {[%emt 0:00:21]} Bxe3+ {[%emt 0:00:20]} 27. Kh1 {[%emt 0:01:06]} g5 {[%emt 0:01:08]} 28. Bg3 {[%emt 0:00:31]} Rae8 {[%emt 0:01:16]} 29. Rff7 {[%emt 0:01:09]} Bc5 $2 {[%emt 0:00:23]} (29... Rg6 {is a better defense.} 30. Rxb7 h5) 30. Rg7+ {[%emt 0:01:00]} Kh8 {[%emt 0:00:25]} 31. Rxh7+ {[%emt 0:00:09]} Kg8 {[%emt 0:00:25]} 32. Rhg7+ {[%emt 0:00:14]} Kh8 {[%emt 0:00:07]} 33. Rxg5 {[%emt 0:00:48]} Bb6 {[%emt 0:01:41]} 34. Kh2 $18 {[%emt 0:02:09]} 1-0

[Event "FIDE WCCC U10 2018"]
[Site "Santiago de Compostela"]
[Date "2018.11.05"]
[Round "2"]
[White "Hagner, Bennet"]
[Black "Chen, Muye"]
[Result "1-0"]
[ECO "B48"]
[WhiteElo "1912"]
[BlackElo "1636"]
[Annotator "NA"]
[PlyCount "157"]
[EventDate "2018.11.04"]
[EventType "swiss"]
[EventCountry "ESP"]
[SourceTitle "playchess.com"]
[Source "ChessBase"]
[SourceQuality "1"]
[TimeControl "40/5400+30:1800+30"]

{[%evp 8,157,40,28,34,41,32767,32767,32767,9,28,20,24,0,32767,32767,16,22,41,20,97,92,169,187,200,143,145,148,157,145,243,212,222,227,206,183,181,189,177,32767,174,181,185,152,166,145,154,162,154,170,168,150,145,145,159,148,163,123,138,132,166,156,158,171,166,154,162,152,146,170,156,137,156,152,175,179,195,170,335,120,150,159,178,64,157,141,148,32767,202,254,225,288,304,32767,32767,32767,32767,32767,32767,213,191,245,32767,195,282,304,278,309,324,581,249,367,321,433,32767,437,578,253,395,469,307,483,1137,3669,2625,32767,1147,7435,1206,32767,32767,6375,29963,5301,6111,10092,2317,29981,29981,29979,32767,29980,29979,29983,29977,29978,29976,32767,32767,32767,29974,29984]} 1. e4 {[%emt 0:00:00]} c5 {[%emt 0:00:00]} 2. Nf3 {[%emt 0:00:00]} e6 {[%emt 0:00:00]} 3. d4 {[%emt 0:00:00]} cxd4 {[%emt 0:00:00]} 4. Nxd4 {[%emt 0:00:00]} Nc6 {[%emt 0:00:00]} 5. Nc3 {[%emt 0:00:03]} Qc7 {[%emt 0:00:00]} 6. Be3 {[%emt 0:00:41]} a6 {[%emt 0:00:00]} 7. Qd2 {[%emt 0:00:15]} Nf6 {[%emt 0:00:42]} 8. f3 {[%emt 0:00:07]} b5 {[%emt 0:00:15]} 9. Nxc6 {[%emt 0:00:23] B48: Sicilian: Taimanov: 5 Nc3 Qc7 6 Be3 a6 without Be2} (9. g4 Bb7 10. O-O-O Nxd4 11. Bxd4 Be7 12. g5 Nh5 13. Ne2 Rc8 14. Rg1 O-O 15. Bh3 g6 16. Kb1 d5 17. e5 {0-1 (66) Almasi,Z (2710)-Movsesian,S (2700) Warsaw 2013 CBM 158 [Szabo,Kr]}) 9... dxc6 {[%emt 0:00:16]} 10. O-O-O {[%emt 0:01:45] LiveBook: 11 Games} Bb7 {[%emt 0:00:43]} 11. Qf2 {[%emt 0:00:40]} c5 {[%emt 0:00:15]} 12. Qg3 {[%emt 0:00:42]} Qa5 $146 {[%emt 0:03:21]} ({Predecessor:} 12... Qxg3 13. hxg3 Bc6 14. g4 Be7 15. g5 Nd7 16. Be2 O-O {½-½ (49) Zaichik,G (2516)-Sarkar,J (2382) Parsipanny 2002}) 13. Kb1 {[%emt 0:09:40]} b4 {[%emt 0:01:21]} (13... Rc8 $11 {remains equal.}) 14. Ne2 {[%emt 0:00:27]} g6 {[%emt 0:08:23]} 15. Qe5 {[%emt 0:01:45]} Bg7 {[%emt 0:10:22]} 16. Bg5 {[%emt 0:05:15]} ({Resist} 16. Bxc5 $6 Rc8 $16) 16... Rd8 {[%emt 0:03:16]} 17. Rxd8+ {[%emt 0:00:36]} Qxd8 {[%emt 0:00:09]} 18. Qxc5 {[%emt 0:02:19]} h6 {[%emt 0:04:12]} (18... Nd7 $16) 19. Bf4 {[%emt 0:02:58]} ({Not} 19. Qxb4 hxg5 20. Qxb7 Qd1+ 21. Nc1 O-O $14) 19... Bf8 {[%emt 0:02:10]} 20. Qa7 {[%emt 0:05:49]} Qc8 {[%emt 0:03:00]} 21. Qd4 {[%emt 0:01:09]} Be7 {[%emt 0:00:23]} 22. Be5 {[%emt 0:14:49]} Qd8 {[%emt 0:02:02]} 23. Bxf6 {[%emt 0:01:51]} Bxf6 {[%emt 0:00:02]} 24. Qxb4 {[%emt 0:00:25]} Qe7 {[%emt 0:02:31]} 25. Qxe7+ {[%emt 0:01:03]} Kxe7 {[%emt 0:00:08]} 26. Nf4 {[%emt 0:00:54]} Be5 {[%emt 0:01:09]} 27. Nd3 {[%emt 0:00:19]} Rd8 {[%emt 0:00:25]} 28. c3 {[%emt 0:00:24]} Bd6 {[%emt 0:01:24]} 29. Kc2 {[%emt 0:01:30]} a5 {[%emt 0:00:31]} 30. Be2 {[%emt 0:00:17]} f6 {[%emt 0:00:29]} 31. Rd1 {[%emt 0:00:42]} h5 {[%emt 0:00:17]} 32. g3 {[%emt 0:03:07]} Bc6 {[%emt 0:01:01]} 33. b3 {[%emt 0:05:01]} g5 {[%emt 0:03:42]} 34. Nb2 {[%emt 0:00:44]} h4 {[%emt 0:01:53]} 35. Nc4 {[%emt 0:03:31]} Bc7 {[%emt 0:01:19]} 36. Rxd8 Kxd8 {[%emt 0:00:01]} 37. a4 {[%emt 0:02:44]} Bb7 {[%emt 0:01:01]} 38. Kd3 {[%emt 0:01:38]} Ba6 {[%emt 0:00:45]} 39. Ke3 {[%emt 0:00:24]} Ke7 {[%emt 0:08:56]} 40. gxh4 {[%emt 0:00:00]} Bf4+ {[%emt 0:00:00]} 41. Kd4 {[%emt 0:08:32]} gxh4 {[%emt 0:01:46]} 42. h3 {[%emt 0:00:59]} Bd6 $2 {[%emt 0:04:28]} (42... Kd7 43. b4 Bxc4 44. Kxc4 (44. Bxc4 Be5+ 45. Kd3 Bc7 $18) 44... Kc6 45. bxa5 Be3) 43. Bd3 {[%emt 0:00:56]} (43. Nxd6 $18 {and the rest is easy.} Bxe2 44. Kc5) 43... e5+ {[%emt 0:00:38]} 44. Ke3 {[%emt 0:00:21]} Bc5+ {[%emt 0:00:01]} 45. Ke2 {[%emt 0:02:31]} (45. Kd2 $18) 45... Bxc4 {[%emt 0:03:28]} ({Black should try} 45... Bc8) 46. Bxc4 {[%emt 0:00:08]} Kd6 {[%emt 0:00:35]} 47. Bd5 {[%emt 0:00:57]} Ba3 {[%emt 0:03:25]} 48. Kd3 {[%emt 0:00:30]} Kc5 {[%emt 0:00:13]} (48... Kc7 $142 49. Kc4 Kb6) 49. Kc2 {[%emt 0:03:26]} Kb6 {[%emt 0:01:38]} 50. Kd3 {[%emt 0:10:11]} Kc5 {[%emt 0:00:01]} 51. Kd2 {[%emt 0:00:11]} Bb2 {[%emt 0:00:19]} 52. Kc2 {[%emt 0:01:22]} Ba3 {[%emt 0:00:05]} 53. b4+ {[%emt 0:02:30]} Kb6 {[%emt 0:03:27]} 54. Kb3 {[%emt 0:01:17]} Bc1 {[%emt 0:00:07]} 55. Kc4 {[%emt 0:00:55]} Bd2 {[%emt 0:00:19]} 56. Bf7 {[%emt 0:02:37]} Be1 {[%emt 0:00:33]} 57. b5 {[%emt 0:03:34]} Bd2 {[%emt 0:00:41]} 58. Kd5 {[%emt 0:00:24]} Bxc3 {[%emt 0:00:00]} 59. Ke6 {[%emt 0:00:17]} Bd2 {[%emt 0:00:07]} 60. Kxf6 {[%emt 0:00:16]} Bf4 {[%emt 0:00:04]} 61. Kf5 {[%emt 0:01:53]} Kc7 {[%emt 0:00:51]} 62. Bc4 {[%emt 0:02:00]} Kd6 {[%emt 0:00:37]} 63. Kg4 {[%emt 0:01:42]} Bg3 {[%emt 0:00:02]} 64. Be2 {[%emt 0:01:27]} Ke6 $2 {[%emt 0:00:48]} (64... Bf2 65. Kg5 Be1) 65. b6 {[%emt 0:02:11]} Kd7 {[%emt 0:08:30]} 66. b7 {[%emt 0:04:19]} Kc7 {[%emt 0:00:19]} 67. Ba6 {[%emt 0:00:07]} Bf2 {[%emt 0:16:09]} 68. f4 {[%emt 0:02:46]} exf4 {[%emt 0:00:03]} 69. e5 {[%emt 0:03:02]} Be3 {[%emt 0:03:09]} 70. Kf3 {[%emt 0:03:55]} (70. e6 $142 Bc5 71. Kxf4 Be7 72. Kf5 Bd6 73. Kf6 Kb6 74. e7 Kxa6 75. e8=Q Kxb7 76. Qd7+ Bc7 77. Kg5) 70... Ba7 {[%emt 0:02:28]} 71. Kxf4 {[%emt 0:00:32]} Kd7 {[%emt 0:00:08]} 72. Kf5 {[%emt 0:00:27]} Ke7 {[%emt 0:00:10]} 73. Bc4 {[%emt 0:00:34]} Bb8 {[%emt 0:00:09]} 74. Bd5 {[%emt 0:00:11]} Bc7 {[%emt 0:00:12]} 75. e6 {[%emt 0:00:42]} Bb8 {[%emt 0:00:09]} 76. Kg5 {[%emt 0:00:59]} Bg3 {[%emt 0:00:20]} 77. Kg6 {[%emt 0:01:18]} Bd6 {[%emt 0:02:04]} 78. Kh5 {[%emt 0:00:07]} Bg3 {[%emt 0:00:04]} 79. Kg5 {[%emt 0:00:06]} 1-0

[Event "FIDE WCCC U10 2018"]
[Site "Santiago de Compostela"]
[Date "2018.11.05"]
[Round "2"]
[White "Ansat, Aldiyar"]
[Black "Azjargal Erdenebat"]
[Result "0-1"]
[ECO "B20"]
[WhiteElo "1899"]
[BlackElo "1633"]
[Annotator "NA RC"]
[PlyCount "92"]
[EventDate "2018.11.04"]
[EventType "swiss"]
[EventCountry "ESP"]
[SourceTitle "playchess.com"]
[Source "ChessBase"]
[SourceQuality "1"]
[TimeControl "40/5400+30:1800+30"]

{[%evp 8,80,8,32767,32767,32767,32767,1,32767,13,9,8,39,32767,39,28,44,36,26,41,37,-2,-1,0,0,0,0,0,-7,0,-6,-23,-26,-45,-38,-33,-23,-30,-16,-32,33,-35,-20,-53,-27,-42,-37,-49,0,-10,-22,-87,32767,32767,32767,32767,94,91,17,108,52,32767,32767,-244,-266,-215,-360,-411,-390,-410,-333,-335,-447,-970,-579]} 1. e4 {[%emt 0:00:00]} c5 {[%emt 0:00:00]} 2. g3 {[%emt 0:00:00]} Nc6 {[%emt 0:00:49]} 3. Bg2 {[%emt 0:00:00]} g6 {[%emt 0:03:29]} 4. d3 {[%emt 0:00:02]} Bg7 {[%emt 0:00:11] LiveBook: 1528 Games} 5. f4 {[%emt 0:00:08]} e6 {[%emt 0:00:21]} 6. Nf3 {[%emt 0:00:10]} Nge7 {[%emt 0:00:14]} 7. c3 {[%emt 0:00:08]} d5 {[%emt 0:00:48]} 8. Na3 {[%emt 0:00:35] B20: Sicilian: Unusual White 2nd moves} (8. O-O b6 9. Na3 O-O 10. e5 Rb8 11. Nc2 b5 12. Be3 c4 13. a3 a5 14. Bc5 cxd3 15. Qxd3 Re8 16. g4 {1-0 (35) Ivanchuk,V (2726)-Vachier Lagrave,M (2758) Berlin 2015}) 8... O-O {[%emt 0:00:54]} 9. e5 {[%emt 0:02:35]} a6 {[%emt 0:02:39]} 10. O-O $146 {[%emt 0:00:54]} Rb8 {[%emt 0:03:42]} 11. Nc2 {[%emt 0:00:07]} Qc7 {[%emt 0:08:44]} 12. Be3 {[%emt 0:01:35]} b6 {[%emt 0:00:47]} 13. Qe2 {[%emt 0:02:06]} a5 {[%emt 0:03:22]} 14. c4 {[%emt 0:12:57]} Ba6 {[%emt 0:01:16]} 15. b3 {[%emt 0:03:20]} Rbd8 {[%emt 0:07:36]} 16. Rad1 {[%emt 0:00:48]} Rd7 {[%emt 0:07:53]} 17. Bf2 {[%emt 0:01:40]} Nb4 {[%emt 0:14:25]} 18. a3 {[%emt 0:11:01]} Nxc2 19. Qxc2 {[%emt 0:00:01]} Rfd8 {[%emt 0:03:46]} 20. g4 {[%emt 0:01:52]} a4 {[%emt 0:01:31]} 21. b4 {[%emt 0:09:56]} dxc4 {[%emt 0:07:09]} 22. Qxa4 {[%emt 0:00:07]} Bb7 {[%emt 0:07:32]} 23. bxc5 {[%emt 0:17:03]} ({Don't do} 23. dxc4 Bh6 $16) 23... bxc5 {[%emt 0:01:00]} 24. Qxc4 {[%emt 0:00:14]} Nd5 {[%emt 0:00:38]} 25. Ng5 {[%emt 0:07:09]} h6 {[%emt 0:09:39]} 26. Nh3 {[%emt 0:00:20]} Bf8 {[%emt 0:00:30]} 27. Qc1 {[%emt 0:08:51]} Nb6 {[%emt 0:01:03]} (27... Qa5 $15 28. Be1 Qa4) 28. Bxb7 $1 {[%emt 0:01:47]} Qxb7 {[%emt 0:00:17]} 29. Bh4 {[%emt 0:00:12]} Rc8 {[%emt 0:01:17]} 30. f5 {[%emt 0:05:37]} c4 {[%emt 0:01:27]} 31. d4 {[%emt 0:01:17] [#]} c3 $2 {[%emt 0:03:40]} (31... Nd5 $1 $17 32. Nf4 Nxf4 33. Qxf4 c3 34. fxe6 fxe6) 32. fxe6 {[%emt 0:04:54]} fxe6 {[%emt 0:00:17]} 33. Qc2 {[%emt 0:00:04]} Bg7 {[%emt 0:04:57]} 34. Bf6 {[%emt 0:03:25]} Nd5 {[%emt 0:01:02]} 35. Qxg6 $2 {[%emt 0:04:09]} (35. Rde1 $1 $11) 35... Ne3 {[%emt 0:00:18]} 36. Nf4 {[%emt 0:00:29]} c2 {[%emt 0:00:58]} 37. Rc1 {[%emt 0:00:44]} Nxf1 {[%emt 0:00:16]} 38. Rxc2 {[%emt 0:01:19] [#]} Ne3 $1 {[%emt 0:02:10]} ({Schwächer ist} 38... Rxc2 39. Qe8+ Bf8 40. Qg6+ Rg7 41. Bxg7 $15) 39. Rxc8+ {[%emt 0:00:45]} Qxc8 {[%emt 0:00:09]} 40. Nxe6 $19 (40. Kf2 $142 Nd5 41. Nxd5 (41. Nxe6 $2 Rb7 $19) 41... exd5 42. Kg3) 40... Rb7 {[%emt 0:00:00]} 41. Nc5 {[%emt 0:03:30]} Rf7 {[%emt 0:02:22]} 42. h3 {[%emt 0:03:32]} Qc6 {[%emt 0:01:07]} 43. Qe4 {[%emt 0:03:08]} Qxe4 {[%emt 0:00:24]} 44. Nxe4 {[%emt 0:00:01]} Nd5 {[%emt 0:00:35]} 45. g5 {[%emt 0:00:52]} hxg5 {[%emt 0:00:18]} 46. Nxg5 {[%emt 0:00:09]} Ra7 0-1

[Event "FIDE WCCC U10 2018"]
[Site "Santiago de Compostela"]
[Date "2018.11.05"]
[Round "2"]
[White "Li, Shanglin"]
[Black "Kuhn, Clement"]
[Result "1-0"]
[ECO "B23"]
[WhiteElo "1659"]
[BlackElo "2087"]
[Annotator "NA"]
[PlyCount "119"]
[EventDate "2018.11.04"]
[EventType "swiss"]
[EventCountry "ESP"]
[SourceTitle "playchess.com"]
[Source "ChessBase"]
[SourceQuality "1"]
[TimeControl "40/5400+30:1800+30"]

{[%evp 8,103,12,-4,32767,4,2,-13,-8,-17,-17,-18,-3,-10,-5,-6,-14,-14,-3,0,-8,-8,-10,-19,-13,-49,-52,-95,-65,-95,24,31,18,12,11,18,164,176,227,0,0,0,0,-71,-45,-84,0,0,32767,32767,32767,32767,2,32767,32767,-60,109,-11,32767,32767,32767,32767,-31,-22,193,124,143,273,242,279,210,213,302,312,320,32767,32767,54,50,62,360,261,32767,32767,32767,548,599,644,662,1371,29981,1892,29982,29982,12849,29984,29985,29989]} 1. e4 {[%emt 0:00:00]} c5 {[%emt 0:00:00]} 2. Ne2 {[%emt 0:00:00]} Nc6 {[%emt 0:00:14]} 3. Nbc3 {[%emt 0:00:00]} d6 {[%emt 0:00:49]} 4. g3 {[%emt 0:00:13]} g6 {[%emt 0:01:59]} 5. Bg2 {[%emt 0:02:42]} Bg7 {[%emt 0:01:08]} 6. a3 {[%emt 0:01:28] LiveBook: 14 Games} e6 {[%emt 0:04:21]} 7. Rb1 {[%emt 0:02:32]} Nge7 {[%emt 0:06:10]} 8. b4 {[%emt 0:04:49]} O-O {[%emt 0:04:55]} 9. O-O {[%emt 0:00:22]} Rb8 {[%emt 0:02:04] B24: Closed Sicilian: 3 g3 sidelines} (9... b6 10. d3 Bb7 11. b5 Nd4 12. Nxd4 cxd4 13. Ne2 e5 14. c3 dxc3 15. Nxc3 Rc8 16. Qb3 Qd7 17. Bb2 Rc5 18. a4 Rfc8 {0-1 (32) Alexeev,A (2300)-Alekseev,E (2636) Sochi 2016}) 10. d3 {[%emt 0:02:05]} b6 {[%emt 0:02:56]} 11. Bf4 {[%emt 0:05:21]} e5 {[%emt 0:08:10]} 12. Bg5 {[%emt 0:01:03]} h6 $146 {[%emt 0:01:31]} ({Predecessor:} 12... Qe8 13. Nd5 f6 14. Bd2 Bd7 15. Ne3 {1-0 (52) Berglund,J-Vik Hansen,R Tromsoe 1998}) 13. Be3 {[%emt 0:01:24]} Nd4 {[%emt 0:01:13]} 14. Qd2 {[%emt 0:01:20]} Kh7 {[%emt 0:00:59]} 15. f4 {[%emt 0:01:09]} Be6 {[%emt 0:04:22]} 16. Nd5 {[%emt 0:10:22]} Nxd5 {[%emt 0:05:56]} 17. exd5 {[%emt 0:00:31]} Bg4 {[%emt 0:00:39]} 18. Nc3 {[%emt 0:02:45]} Qd7 {[%emt 0:02:09]} (18... exf4 $17 19. Bxf4 g5) 19. fxe5 {[%emt 0:19:13]} dxe5 {[%emt 0:01:17]} 20. bxc5 {[%emt 0:04:45]} bxc5 {[%emt 0:01:00]} 21. Ne4 {[%emt 0:01:11]} Qe7 $2 {[%emt 0:17:44]} (21... Rxb1 $11 {and Black stays safe.} 22. Rxb1 Rc8) 22. c3 {[%emt 0:02:28]} f5 {[%emt 0:11:13]} (22... Rb6 $142 23. h3 (23. cxd4 cxd4 24. d6 Qd8 $16) 23... Bc8) 23. d6 $2 {[%emt 0:00:44]} ({Less strong is} 23. cxd4 Rxb1 24. Rxb1 cxd4 $16) (23. Rxb8 $18 Rxb8 24. d6 (24. cxd4 cxd4 25. Bg5 hxg5 $16)) 23... Qe6 {[%emt 0:02:37]} 24. Nxc5 {[%emt 0:07:40]} Qxd6 {[%emt 0:01:33]} 25. Nb7 {[%emt 0:02:33]} (25. cxd4 $11 Rxb1 26. Rxb1 exd4 27. Bxh6 Bxh6 28. Rb7+ Bg7 29. h3) 25... Ne2+ {[%emt 0:01:32]} 26. Kh1 {[%emt 0:00:11] [#]} Qxa3 {[%emt 0:05:25]} (26... Qd7 $1 $17 27. Bxa7 Rbc8) 27. Bc5 $1 {[%emt 0:01:00]} Qxc3 {[%emt 0:00:26]} 28. Qxc3 {[%emt 0:00:09]} Nxc3 {[%emt 0:00:01]} 29. Rb3 {[%emt 0:00:00]} Nd1 {[%emt 0:03:34]} 30. Bxf8 {[%emt 0:00:23]} Bxf8 {[%emt 0:00:50]} 31. Re1 {[%emt 0:01:20]} ({Günstiger ist} 31. Rb1 $11) 31... Re8 $2 {[%emt 0:01:23]} (31... f4 $15 {behält die Oberhand.} 32. Rxe5 f3) 32. d4 {[%emt 0:03:02]} ({Lieber} 32. h3 $16 Nf2+ 33. Kh2) 32... e4 {[%emt 0:01:31]} 33. d5 {[%emt 0:02:05]} Nf2+ {[%emt 0:01:12]} 34. Kg1 {[%emt 0:00:11]} Nd3 $1 {[%emt 0:03:22]} 35. Reb1 {[%emt 0:00:55]} Re7 $2 {[%emt 0:00:33]} (35... Nc5 $11 {and Black is okay.} 36. Rb5 Nd7) 36. h3 {[%emt 0:01:35]} Bh5 {[%emt 0:00:23]} 37. d6 {[%emt 0:00:16]} Rd7 {[%emt 0:00:56] [#]} 38. g4 $1 {[%emt 0:01:46]} fxg4 {[%emt 0:00:42]} 39. Bxe4 {[%emt 0:00:19]} Ne5 {[%emt 0:00:13]} 40. Rb5 {[%emt 0:00:00]} Bg7 {[%emt 0:00:00]} 41. hxg4 {[%emt 0:06:06]} Bxg4 {[%emt 0:01:33]} 42. Rc1 {[%emt 0:00:37]} a6 {[%emt 0:05:42] [#]} 43. Ra5 $1 {[%emt 0:01:27]} Bf3 $2 {[%emt 0:13:55]} ({Better is} 43... h5 $1 $14) 44. Bxf3 {[%emt 0:03:33]} Nxf3+ {[%emt 0:00:06]} 45. Kf2 {[%emt 0:00:02]} Ne5 {[%emt 0:01:59]} 46. Rc7 {[%emt 0:00:37]} Ng4+ {[%emt 0:02:36]} 47. Kf3 {[%emt 0:00:31]} Nf6 {[%emt 0:00:21]} 48. Rxa6 {[%emt 0:00:37]} Bf8 {[%emt 0:04:18]} 49. Nc5 {[%emt 0:01:13]} Bxd6 {[%emt 0:01:16]} 50. Nxd7 {[%emt 0:00:06]} Bxc7 {[%emt 0:01:26]} 51. Nxf6+ {[%emt 0:00:01]} Kg7 {[%emt 0:00:33]} 52. Ne8+ {[%emt 0:00:01]} Kf7 {[%emt 0:00:12]} 53. Nxc7 {[%emt 0:00:04]} h5 {[%emt 0:00:13]} 54. Nd5 {[%emt 0:00:00]} Kg7 {[%emt 0:00:09]} 55. Nf4 {[%emt 0:00:05]} h4 {[%emt 0:00:32]} 56. Rxg6+ {[%emt 0:00:02]} Kh7 {[%emt 0:00:08]} 57. Rg4 {[%emt 0:00:02]} h3 {[%emt 0:00:06]} 58. Nxh3 {[%emt 0:00:02]} Kh8 {[%emt 0:00:05]} 59. Kf4 {[%emt 0:00:04]} Kh7 {[%emt 0:00:06]} 60. Kf5 {[%emt 0:00:01]} 1-0